[Event "Titled Tuesday Blitz July 25 Late 2023"]
[White "slidingknight2775"]
[Black "Lamaze, Simon"]
[BlackFideId "36069264"]
[WhiteElo "2487"]
[BlackElo "2616"]
[Result "0-1"]
[Round "4"]
[TimeControl "180+2"]
[Date "2023.07.25"]
[WhiteClock "0:00:14"]
[BlackClock "0:00:35"]
[Board "96"]

1. Nf3 {[%clk 0:03:00]}  Nf6 {[%clk 0:02:58]} 2. g3 {[%clk 0:03:00]}  e6 {[%clk 0:02:58]} 3. Bg2 {[%clk 0:03:00]}  d5 {[%clk 0:02:59]} 4. O-O {[%clk 0:03:01]}  c5 {[%clk 0:02:54]} 5. c4 {[%clk 0:03:01]}  Nc6 {[%clk 0:02:54]} 6. d4 {[%clk 0:03:01]}  dxc4 {[%clk 0:02:52]} 7. Qa4 {[%clk 0:03:00]}  a6 {[%clk 0:02:46]} 8. dxc5 {[%clk 0:02:57]}  Bxc5 {[%clk 0:02:45]} 9. Qxc4 {[%clk 0:02:57]}  Qe7 {[%clk 0:02:46]} 10. Bg5 {[%clk 0:02:42]}  Bb6 {[%clk 0:02:36]} 11. Nc3 {[%clk 0:02:37]}  O-O {[%clk 0:02:35]} 12. Ne4 {[%clk 0:02:32]}  e5 {[%clk 0:02:30]} 13. Nxf6+ {[%clk 0:01:46]}  gxf6 {[%clk 0:02:30]} 14. Bh6 {[%clk 0:01:47]}  Rd8 {[%clk 0:02:29]} 15. Qh4 {[%clk 0:01:43]}  Bf5 {[%clk 0:02:25]} 16. Rfd1 {[%clk 0:01:06]}  Bg6 {[%clk 0:01:52]} 17. Be3 {[%clk 0:00:33]}  Bxe3 {[%clk 0:01:52]} 18. fxe3 {[%clk 0:00:34]}  Qc5 {[%clk 0:01:51]} 19. Kf2 {[%clk 0:00:31]}  Kg7 {[%clk 0:01:40]} 20. Rac1 {[%clk 0:00:24]}  Qb6 {[%clk 0:01:39]} 21. b3 {[%clk 0:00:24]}  Rxd1 {[%clk 0:01:38]} 22. Rxd1 {[%clk 0:00:25]}  Rd8 {[%clk 0:01:39]} 23. Rxd8 {[%clk 0:00:25]}  Nxd8 {[%clk 0:01:38]} 24. Qc4 {[%clk 0:00:25]}  Qa5 {[%clk 0:01:28]} 25. a4 {[%clk 0:00:22]}  b5 {[%clk 0:01:27]} 26. axb5 {[%clk 0:00:22]}  axb5 {[%clk 0:01:28]} 27. Qd5 {[%clk 0:00:21]}  Ne6 {[%clk 0:01:26]} 28. Nh4 {[%clk 0:00:20]}  Qb6 {[%clk 0:01:26]} 29. Be4 {[%clk 0:00:19]}  Qc5 {[%clk 0:01:12]} 30. Qd3 {[%clk 0:00:14]}  Qe7 {[%clk 0:00:54]} 31. Nf5+ {[%clk 0:00:11]}  Bxf5 {[%clk 0:00:54]} 32. Bxf5 {[%clk 0:00:12]}  b4 {[%clk 0:00:50]} 33. Qc4 {[%clk 0:00:12]}  Nf8 {[%clk 0:00:40]} 34. Qh4 {[%clk 0:00:10]}  Ng6 {[%clk 0:00:39]} 35. Qc4 {[%clk 0:00:10]}  h5 {[%clk 0:00:35]} 36. h3 {[%clk 0:00:10]}  Qb7 {[%clk 0:00:33]} 37. g4 {[%clk 0:00:09]}  h4 {[%clk 0:00:29]} 38. Qe4 {[%clk 0:00:06]}  Qc7 {[%clk 0:00:27]} 39. Qd3 {[%clk 0:00:04]}  e4 {[%clk 0:00:26]} 40. Qxe4 {[%clk 0:00:03]}  Qg3+ {[%clk 0:00:26]} 41. Kf1 {[%clk 0:00:04]}  Qxh3+ {[%clk 0:00:27]} 42. Kf2 {[%clk 0:00:03]}  Qg3+ {[%clk 0:00:27]} 43. Kf1 {[%clk 0:00:03]}  Ne5 {[%clk 0:00:27]} 44. Qg2 {[%clk 0:00:02]}  Qxe3 {[%clk 0:00:27]} 45. Qf2 {[%clk 0:00:02]}  Qc1+ {[%clk 0:00:26]} 46. Kg2 {[%clk 0:00:03]}  Qg5 {[%clk 0:00:25]} 47. e3 {[%clk 0:00:02]}  Nxg4 {[%clk 0:00:25]} 48. Bxg4 {[%clk 0:00:02]}  Qxg4+ {[%clk 0:00:26]} 49. Kh1 {[%clk 0:00:03]}  f5 {[%clk 0:00:26]} 50. Qb2+ {[%clk 0:00:02]}  Kg6 {[%clk 0:00:26]} 51. Qe5 {[%clk 0:00:02]}  Qe4+ {[%clk 0:00:26]} 52. Qxe4 {[%clk 0:00:02]}  fxe4 {[%clk 0:00:27]} 53. Kh2 {[%clk 0:00:03]}  Kg5 {[%clk 0:00:28]} 54. Kh3 {[%clk 0:00:04]}  f5 {[%clk 0:00:28]} 55. Kg2 {[%clk 0:00:05]}  f4 {[%clk 0:00:29]} 56. Kf2 {[%clk 0:00:06]}  fxe3+ {[%clk 0:00:29]} 57. Kxe3 {[%clk 0:00:06]}  h3 {[%clk 0:00:30]} 58. Kf2 {[%clk 0:00:06]}  e3+ {[%clk 0:00:30]} 59. Kg1 {[%clk 0:00:06]}  h2+ {[%clk 0:00:29]} 60. Kxh2 {[%clk 0:00:06]}  e2 {[%clk 0:00:29]} 61. Kg2 {[%clk 0:00:07]}  e1=Q {[%clk 0:00:29]} 62. Kf3 {[%clk 0:00:07]}  Qc3+ {[%clk 0:00:30]} 63. Kg2 {[%clk 0:00:08]}  Qxb3 {[%clk 0:00:31]} 64. Kh1 {[%clk 0:00:09]}  Qc3 {[%clk 0:00:31]} 65. Kh2 {[%clk 0:00:10]}  b3 {[%clk 0:00:32]} 66. Kg1 {[%clk 0:00:11]}  b2 {[%clk 0:00:33]} 67. Kh1 {[%clk 0:00:12]}  b1=Q+ {[%clk 0:00:33]} 68. Kh2 {[%clk 0:00:13]}  Qbb2+ {[%clk 0:00:34]} 69. Kg1 {[%clk 0:00:14]}  Qcc1# {[%clk 0:00:35]} 0-1


[Site "https://www.chess.com"]

[Event "Titled Tuesday Blitz July 25 Late 2023"]
[White "Kirillov, Dmitry"]
[Black "Vlassov, Nikolai"]
[WhiteFideId "34180572"]
[BlackFideId "4103360"]
[WhiteElo "2454"]
[BlackElo "2570"]
[Result "1-0"]
[Round "4"]
[TimeControl "180+2"]
[Date "2023.07.25"]
[WhiteClock "0:00:15"]
[BlackClock "0:00:07"]
[Board "99"]

1. d4 {[%clk 0:02:59]}  Nf6 {[%clk 0:02:59]} 2. c4 {[%clk 0:02:59]}  Nc6 {[%clk 0:02:59]} 3. Nc3 {[%clk 0:02:59]}  e5 {[%clk 0:02:59]} 4. d5 {[%clk 0:02:59]}  Ne7 {[%clk 0:02:59]} 5. h4 {[%clk 0:02:46]}  Neg8 {[%clk 0:02:59]} 6. Qd3 {[%clk 0:02:44]}  Bc5 {[%clk 0:02:58]} 7. Qg3 {[%clk 0:02:44]}  Kf8 {[%clk 0:02:58]} 8. e4 {[%clk 0:02:44]}  d6 {[%clk 0:02:56]} 9. Be3 {[%clk 0:02:41]}  Bxe3 {[%clk 0:02:47]} 10. Qxe3 {[%clk 0:02:41]}  c6 {[%clk 0:02:37]} 11. f3 {[%clk 0:02:40]}  cxd5 {[%clk 0:02:36]} 12. cxd5 {[%clk 0:02:41]}  Bd7 {[%clk 0:02:24]} 13. Bd3 {[%clk 0:02:38]}  h5 {[%clk 0:02:18]} 14. Nge2 {[%clk 0:02:38]}  g6 {[%clk 0:02:05]} 15. g3 {[%clk 0:02:38]}  Kg7 {[%clk 0:02:05]} 16. Kf2 {[%clk 0:02:38]}  Nh6 {[%clk 0:02:03]} 17. Kg2 {[%clk 0:02:35]}  Qe7 {[%clk 0:01:34]} 18. Ng1 {[%clk 0:02:19]}  Nh7 {[%clk 0:01:28]} 19. Nh3 {[%clk 0:02:16]}  f5 {[%clk 0:01:25]} 20. Ng5 {[%clk 0:02:09]}  Rhf8 {[%clk 0:01:16]} 21. Nxh7 {[%clk 0:01:40]}  Kxh7 {[%clk 0:01:16]} 22. Qg5 {[%clk 0:01:39]}  Rf7 {[%clk 0:00:39]} 23. Qxe7 {[%clk 0:01:37]}  Rxe7 {[%clk 0:00:39]} 24. Bb5 {[%clk 0:01:22]}  Bc8 {[%clk 0:00:28]} 25. Rac1 {[%clk 0:01:16]}  Nf7 {[%clk 0:00:27]} 26. Bd3 {[%clk 0:01:13]}  f4 {[%clk 0:00:27]} 27. Nb5 {[%clk 0:00:54]}  Kg7 {[%clk 0:00:27]} 28. a3 {[%clk 0:00:52]}  a6 {[%clk 0:00:26]} 29. Nc3 {[%clk 0:00:46]}  Bd7 {[%clk 0:00:23]} 30. gxf4 {[%clk 0:00:38]}  exf4 {[%clk 0:00:23]} 31. Ne2 {[%clk 0:00:39]}  Ne5 {[%clk 0:00:22]} 32. Rhd1 {[%clk 0:00:31]}  Rf8 {[%clk 0:00:19]} 33. Kf2 {[%clk 0:00:30]}  Rff7 {[%clk 0:00:18]} 34. Rc7 {[%clk 0:00:30]}  Ba4 {[%clk 0:00:18]} 35. Rxe7 {[%clk 0:00:24]}  Rxe7 {[%clk 0:00:19]} 36. Rd2 {[%clk 0:00:23]}  Rc7 {[%clk 0:00:19]} 37. Nc3 {[%clk 0:00:23]}  Bd7 {[%clk 0:00:17]} 38. Bf1 {[%clk 0:00:22]}  g5 {[%clk 0:00:17]} 39. hxg5 {[%clk 0:00:22]}  Kg6 {[%clk 0:00:17]} 40. Be2 {[%clk 0:00:17]}  Kxg5 {[%clk 0:00:17]} 41. Rd1 {[%clk 0:00:18]}  h4 {[%clk 0:00:18]} 42. Rg1+ {[%clk 0:00:18]}  Kf6 {[%clk 0:00:18]} 43. Rh1 {[%clk 0:00:17]}  Ng6 {[%clk 0:00:16]} 44. Bf1 {[%clk 0:00:16]}  Rc8 {[%clk 0:00:16]} 45. Bh3 {[%clk 0:00:16]}  Bxh3 {[%clk 0:00:15]} 46. Rxh3 {[%clk 0:00:17]}  Rh8 {[%clk 0:00:15]} 47. Ne2 {[%clk 0:00:12]}  Kg5 {[%clk 0:00:15]} 48. Nd4 {[%clk 0:00:12]}  Rh6 {[%clk 0:00:12]} 49. Ne6+ {[%clk 0:00:12]}  Kf6 {[%clk 0:00:13]} 50. Nd4 {[%clk 0:00:11]}  Ke5 {[%clk 0:00:13]} 51. Nf5 {[%clk 0:00:11]}  Rh5 {[%clk 0:00:13]} 52. Ke2 {[%clk 0:00:08]}  Kf6 {[%clk 0:00:13]} 53. Kf2 {[%clk 0:00:08]}  Ne7 {[%clk 0:00:13]} 54. Nxd6 {[%clk 0:00:08]}  Nxd5 {[%clk 0:00:10]} 55. exd5 {[%clk 0:00:07]}  Rxd5 {[%clk 0:00:11]} 56. Ne4+ {[%clk 0:00:08]}  Ke5 {[%clk 0:00:11]} 57. Rxh4 {[%clk 0:00:08]}  Kd4 {[%clk 0:00:11]} 58. Rxf4 {[%clk 0:00:08]}  Kd3 {[%clk 0:00:11]} 59. Rf7 {[%clk 0:00:08]}  b5 {[%clk 0:00:11]} 60. Rf6 {[%clk 0:00:09]}  Kc2 {[%clk 0:00:11]} 61. Rd6 {[%clk 0:00:09]}  Rh5 {[%clk 0:00:10]} 62. Rd2+ {[%clk 0:00:09]}  Kb3 {[%clk 0:00:10]} 63. Ke3 {[%clk 0:00:10]}  a5 {[%clk 0:00:10]} 64. f4 {[%clk 0:00:10]}  Rh3+ {[%clk 0:00:09]} 65. Kd4 {[%clk 0:00:11]}  b4 {[%clk 0:00:10]} 66. axb4 {[%clk 0:00:11]}  axb4 {[%clk 0:00:10]} 67. Rd3+ {[%clk 0:00:11]}  Rxd3+ {[%clk 0:00:08]} 68. Kxd3 {[%clk 0:00:12]}  Kxb2 {[%clk 0:00:09]} 69. Nc5 {[%clk 0:00:13]}  b3 {[%clk 0:00:10]} 70. f5 {[%clk 0:00:14]}  Ka3 {[%clk 0:00:10]} 71. Nxb3 {[%clk 0:00:14]}  Kxb3 {[%clk 0:00:07]} 72. f6 {[%clk 0:00:15]} 1-0


[Site "https://www.chess.com"]

[Event "Titled Tuesday Blitz July 25 Late 2023"]
[White "Gatterer, Florian"]
[Black "ATM622"]
[WhiteFideId "811688"]
[WhiteElo "2428"]
[BlackElo "2558"]
[Result "1-0"]
[Round "4"]
[TimeControl "180+2"]
[Date "2023.07.25"]
[WhiteClock "0:00:05"]
[BlackClock "0:00:01"]
[Board "101"]

1. b3 {[%clk 0:03:00]}  d5 {[%clk 0:02:56]} 2. Bb2 {[%clk 0:02:59]}  c5 {[%clk 0:02:43]} 3. e3 {[%clk 0:02:57]}  Nc6 {[%clk 0:02:43]} 4. Nf3 {[%clk 0:02:57]}  Nf6 {[%clk 0:02:43]} 5. Bb5 {[%clk 0:02:57]}  Bf5 {[%clk 0:02:37]} 6. Bxc6+ {[%clk 0:02:55]}  bxc6 {[%clk 0:02:36]} 7. Ne5 {[%clk 0:02:54]}  Qc7 {[%clk 0:02:35]} 8. d3 {[%clk 0:02:50]}  e6 {[%clk 0:02:35]} 9. Nd2 {[%clk 0:02:47]}  Bd6 {[%clk 0:02:35]} 10. Ndf3 {[%clk 0:02:47]}  O-O {[%clk 0:02:22]} 11. h3 {[%clk 0:02:46]}  Nd7 {[%clk 0:02:10]} 12. Nxd7 {[%clk 0:02:39]}  Qxd7 {[%clk 0:02:09]} 13. Nh4 {[%clk 0:02:38]}  Bg6 {[%clk 0:02:05]} 14. Nxg6 {[%clk 0:02:37]}  fxg6 {[%clk 0:01:54]} 15. O-O {[%clk 0:02:33]}  e5 {[%clk 0:01:53]} 16. c4 {[%clk 0:02:30]}  d4 {[%clk 0:01:52]} 17. e4 {[%clk 0:02:20]}  a5 {[%clk 0:01:49]} 18. Bc1 {[%clk 0:02:07]}  Be7 {[%clk 0:01:48]} 19. Bd2 {[%clk 0:02:05]}  Rf7 {[%clk 0:01:40]} 20. Rb1 {[%clk 0:01:58]}  Bh4 {[%clk 0:01:28]} 21. Qg4 {[%clk 0:01:52]}  Qxg4 {[%clk 0:01:27]} 22. hxg4 {[%clk 0:01:51]}  Be7 {[%clk 0:01:23]} 23. f3 {[%clk 0:01:31]}  h5 {[%clk 0:01:17]} 24. gxh5 {[%clk 0:01:30]}  gxh5 {[%clk 0:01:18]} 25. Kf2 {[%clk 0:01:30]}  Kh7 {[%clk 0:01:13]} 26. Ke2 {[%clk 0:01:29]}  g5 {[%clk 0:01:10]} 27. Rh1 {[%clk 0:01:29]}  Kg6 {[%clk 0:01:10]} 28. a4 {[%clk 0:01:21]}  Bd8 {[%clk 0:01:07]} 29. Rh2 {[%clk 0:01:11]}  h4 {[%clk 0:01:00]} 30. Rhh1 {[%clk 0:01:07]}  Bc7 {[%clk 0:00:54]} 31. Rh2 {[%clk 0:01:05]}  Raf8 {[%clk 0:00:48]} 32. Rhh1 {[%clk 0:00:58]}  Bd8 {[%clk 0:00:44]} 33. Rbg1 {[%clk 0:00:53]}  g4 {[%clk 0:00:38]} 34. Rf1 {[%clk 0:00:52]}  g3 {[%clk 0:00:32]} 35. Rb1 {[%clk 0:00:46]}  Bg5 {[%clk 0:00:29]} 36. Bxg5 {[%clk 0:00:43]}  Kxg5 {[%clk 0:00:30]} 37. Rh3 {[%clk 0:00:43]}  Rb8 {[%clk 0:00:27]} 38. Kd2 {[%clk 0:00:42]}  Rfb7 {[%clk 0:00:18]} 39. Kc2 {[%clk 0:00:42]}  Rh7 {[%clk 0:00:17]} 40. Rbh1 {[%clk 0:00:36]}  Rbh8 {[%clk 0:00:17]} 41. Kd2 {[%clk 0:00:31]}  Kf4 {[%clk 0:00:13]} 42. Rb1 {[%clk 0:00:31]}  Kg5 {[%clk 0:00:12]} 43. Rbh1 {[%clk 0:00:30]}  Rb8 {[%clk 0:00:12]} 44. Rb1 {[%clk 0:00:30]}  Rb6 {[%clk 0:00:06]} 45. Kc2 {[%clk 0:00:29]}  Kf4 {[%clk 0:00:06]} 46. Kd2 {[%clk 0:00:28]}  Kg5 {[%clk 0:00:06]} 47. Kc2 {[%clk 0:00:28]}  Rhb7 {[%clk 0:00:06]} 48. Rhh1 {[%clk 0:00:24]}  Kf4 {[%clk 0:00:03]} 49. Rxh4+ {[%clk 0:00:20]}  Ke3 {[%clk 0:00:04]} 50. Rh5 {[%clk 0:00:17]}  Kf2 {[%clk 0:00:02]} 51. Rxe5 {[%clk 0:00:17]}  Kxg2 {[%clk 0:00:02]} 52. Rf5 {[%clk 0:00:17]}  Kf2 {[%clk 0:00:02]} 53. Rg5 {[%clk 0:00:10]}  Kxf3 {[%clk 0:00:01]} 54. Rf1+ {[%clk 0:00:09]}  Ke2 {[%clk 0:00:01]} 55. Rd1 {[%clk 0:00:06]}  Kf2 {[%clk 0:00:01]} 56. Rf5+ {[%clk 0:00:05]}  Ke3 {[%clk 0:00:01]} 57. Re1# {[%clk 0:00:05]} 1-0


[Site "https://www.chess.com"]

[Event "Titled Tuesday Blitz July 25 Late 2023"]
[White "Chor, Kevin"]
[Black "Duarte, Leonardo"]
[WhiteFideId "2090740"]
[BlackFideId "110582"]
[WhiteElo "2520"]
[BlackElo "2343"]
[Result "1-0"]
[Round "4"]
[TimeControl "180+2"]
[Date "2023.07.25"]
[WhiteClock "0:00:03"]
[BlackClock "0:00:00"]
[Board "104"]

1. e4 {[%clk 0:03:00]}  e5 {[%clk 0:02:46]} 2. Nf3 {[%clk 0:03:00]}  Nc6 {[%clk 0:02:46]} 3. Bb5 {[%clk 0:03:00]}  a6 {[%clk 0:02:43]} 4. Ba4 {[%clk 0:03:01]}  Nf6 {[%clk 0:02:41]} 5. O-O {[%clk 0:03:01]}  Be7 {[%clk 0:02:36]} 6. Re1 {[%clk 0:03:01]}  b5 {[%clk 0:02:35]} 7. Bb3 {[%clk 0:03:01]}  O-O {[%clk 0:02:27]} 8. d4 {[%clk 0:03:00]}  d6 {[%clk 0:02:21]} 9. c3 {[%clk 0:03:00]}  Bg4 {[%clk 0:02:20]} 10. Be3 {[%clk 0:02:53]}  Re8 {[%clk 0:02:00]} 11. Nbd2 {[%clk 0:02:44]}  exd4 {[%clk 0:01:55]} 12. cxd4 {[%clk 0:02:40]}  d5 {[%clk 0:01:54]} 13. e5 {[%clk 0:02:22]}  Ne4 {[%clk 0:01:54]} 14. Nxe4 {[%clk 0:01:58]}  dxe4 {[%clk 0:01:49]} 15. Qc2 {[%clk 0:01:58]}  exf3 {[%clk 0:01:40]} 16. Qxc6 {[%clk 0:01:57]}  fxg2 {[%clk 0:01:34]} 17. Qxg2 {[%clk 0:01:43]}  Bf5 {[%clk 0:01:10]} 18. Rad1 {[%clk 0:01:28]}  Bb4 {[%clk 0:01:01]} 19. Re2 {[%clk 0:01:20]}  Qd7 {[%clk 0:00:56]} 20. a3 {[%clk 0:01:13]}  Bh3 {[%clk 0:00:52]} 21. Qg3 {[%clk 0:01:07]}  Bf8 {[%clk 0:00:48]} 22. Red2 {[%clk 0:01:00]}  Qg4 {[%clk 0:00:19]} 23. Qxg4 {[%clk 0:00:45]}  Bxg4 {[%clk 0:00:20]} 24. Rc1 {[%clk 0:00:45]}  Rac8 {[%clk 0:00:16]} 25. Rc6 {[%clk 0:00:36]}  a5 {[%clk 0:00:15]} 26. f4 {[%clk 0:00:34]}  Bd7 {[%clk 0:00:13]} 27. Ra6 {[%clk 0:00:24]}  a4 {[%clk 0:00:13]} 28. Bc2 {[%clk 0:00:24]}  c6 {[%clk 0:00:13]} 29. Be4 {[%clk 0:00:18]}  Ra8 {[%clk 0:00:08]} 30. Rxc6 {[%clk 0:00:14]}  Bxc6 {[%clk 0:00:03]} 31. Bxc6 {[%clk 0:00:15]}  b4 {[%clk 0:00:03]} 32. Bxa8 {[%clk 0:00:11]}  Rxa8 {[%clk 0:00:03]} 33. axb4 {[%clk 0:00:09]}  Bxb4 {[%clk 0:00:04]} 34. Rc2 {[%clk 0:00:09]}  Kf8 {[%clk 0:00:04]} 35. d5 {[%clk 0:00:09]}  Ke8 {[%clk 0:00:04]} 36. Rc4 {[%clk 0:00:08]}  a3 {[%clk 0:00:02]} 37. bxa3 {[%clk 0:00:09]}  Bxa3 {[%clk 0:00:02]} 38. d6 {[%clk 0:00:07]}  Bb2 {[%clk 0:00:01]} 39. Rc7 {[%clk 0:00:05]}  Ra3 {[%clk 0:00:01]} 40. Bb6 {[%clk 0:00:03]}  Rb3 {[%clk 0:00:00]} 41. d7+ {[%clk 0:00:03]} 1-0


[Site "https://www.chess.com"]

[Event "Titled Tuesday Blitz July 25 Late 2023"]
[White "Hambleton, Aman"]
[Black "Mohamed Saeed Laily"]
[WhiteFideId "2606577"]
[BlackFideId "9314946"]
[WhiteElo "2763"]
[BlackElo "2281"]
[Result "1-0"]
[Round "4"]
[TimeControl "180+2"]
[Date "2023.07.25"]
[WhiteClock "0:00:06"]
[BlackClock "0:00:00"]
[Board "107"]

1. b3 {[%clk 0:03:00]}  d5 {[%clk 0:02:58]} 2. Bb2 {[%clk 0:03:00]}  Nf6 {[%clk 0:02:58]} 3. Nf3 {[%clk 0:03:00]}  g6 {[%clk 0:02:58]} 4. Bxf6 {[%clk 0:02:58]}  exf6 {[%clk 0:02:58]} 5. d4 {[%clk 0:02:59]}  Bg7 {[%clk 0:02:59]} 6. e3 {[%clk 0:03:00]}  O-O {[%clk 0:02:58]} 7. Be2 {[%clk 0:03:00]}  c6 {[%clk 0:02:58]} 8. O-O {[%clk 0:03:00]}  Bg4 {[%clk 0:02:57]} 9. Nbd2 {[%clk 0:03:00]}  Nd7 {[%clk 0:02:54]} 10. h3 {[%clk 0:02:59]}  Bxf3 {[%clk 0:02:54]} 11. Nxf3 {[%clk 0:02:58]}  f5 {[%clk 0:02:54]} 12. g3 {[%clk 0:02:59]}  Re8 {[%clk 0:02:52]} 13. Rc1 {[%clk 0:02:56]}  Qa5 {[%clk 0:02:27]} 14. c3 {[%clk 0:02:57]}  Bf6 {[%clk 0:01:54]} 15. Qc2 {[%clk 0:02:55]}  Kg7 {[%clk 0:01:45]} 16. Rfd1 {[%clk 0:02:55]}  h5 {[%clk 0:01:42]} 17. h4 {[%clk 0:02:55]}  Qc7 {[%clk 0:01:28]} 18. c4 {[%clk 0:02:55]}  Qd6 {[%clk 0:01:21]} 19. Kg2 {[%clk 0:02:51]}  Re4 {[%clk 0:01:18]} 20. Bd3 {[%clk 0:02:50]}  Ree8 {[%clk 0:01:02]} 21. Rb1 {[%clk 0:02:46]}  Rac8 {[%clk 0:00:53]} 22. c5 {[%clk 0:02:44]}  Qc7 {[%clk 0:00:50]} 23. b4 {[%clk 0:02:45]}  a6 {[%clk 0:00:50]} 24. a4 {[%clk 0:02:45]}  Ra8 {[%clk 0:00:34]} 25. Rb3 {[%clk 0:02:46]}  Be7 {[%clk 0:00:29]} 26. Rdb1 {[%clk 0:02:45]}  Nf6 {[%clk 0:00:28]} 27. b5 {[%clk 0:02:45]}  axb5 {[%clk 0:00:27]} 28. axb5 {[%clk 0:02:46]}  Reb8 {[%clk 0:00:25]} 29. Ng1 {[%clk 0:02:45]}  Ng4 {[%clk 0:00:20]} 30. Nf3 {[%clk 0:02:40]}  Bf6 {[%clk 0:00:19]} 31. Be2 {[%clk 0:02:38]}  Re8 {[%clk 0:00:18]} 32. bxc6 {[%clk 0:01:54]}  bxc6 {[%clk 0:00:18]} 33. Rb7 {[%clk 0:01:55]}  Qc8 {[%clk 0:00:18]} 34. Ng1 {[%clk 0:01:55]}  Nxe3+ {[%clk 0:00:15]} 35. fxe3 {[%clk 0:01:55]}  Rxe3 {[%clk 0:00:16]} 36. Nf3 {[%clk 0:01:05]}  Qe6 {[%clk 0:00:15]} 37. Bf1 {[%clk 0:01:00]}  Raa3 {[%clk 0:00:14]} 38. R7b3 {[%clk 0:00:59]}  Raxb3 {[%clk 0:00:05]} 39. Rxb3 {[%clk 0:01:00]}  f4 {[%clk 0:00:04]} 40. Rxe3 {[%clk 0:00:40]}  Qxe3 {[%clk 0:00:04]} 41. Qd2 {[%clk 0:00:18]}  Qe6 {[%clk 0:00:03]} 42. Qxf4 {[%clk 0:00:17]}  Qe8 {[%clk 0:00:02]} 43. Qd2 {[%clk 0:00:05]}  Qa8 {[%clk 0:00:03]} 44. Be2 {[%clk 0:00:05]}  Qa4 {[%clk 0:00:03]} 45. Kf2 {[%clk 0:00:04]}  Qb3 {[%clk 0:00:03]} 46. Qe3 {[%clk 0:00:05]}  Qb1 {[%clk 0:00:03]} 47. Ne5 {[%clk 0:00:05]}  Qf5+ {[%clk 0:00:03]} 48. Qf4 {[%clk 0:00:05]}  Qh3 {[%clk 0:00:03]} 49. Bf3 {[%clk 0:00:05]}  Qh2+ {[%clk 0:00:03]} 50. Bg2 {[%clk 0:00:06]}  g5 {[%clk 0:00:00]} 51. hxg5 {[%clk 0:00:06]} 1-0


[Site "https://www.chess.com"]

[Event "Titled Tuesday Blitz July 25 Late 2023"]
[White "Pakleza, Zbigniew"]
[Black "Nunez V, Gustavo Eduardo"]
[WhiteFideId "1119290"]
[BlackFideId "4403690"]
[WhiteElo "2759"]
[BlackElo "2409"]
[Result "1-0"]
[Round "4"]
[TimeControl "180+2"]
[Date "2023.07.25"]
[WhiteClock "0:00:11"]
[BlackClock "0:00:32"]
[Board "108"]

1. Nf3 {[%clk 0:03:00]}  Nf6 {[%clk 0:02:55]} 2. c4 {[%clk 0:03:00]}  c5 {[%clk 0:02:54]} 3. Nc3 {[%clk 0:03:00]}  b6 {[%clk 0:02:52]} 4. g3 {[%clk 0:02:50]}  Bb7 {[%clk 0:02:51]} 5. Bg2 {[%clk 0:02:51]}  g6 {[%clk 0:02:51]} 6. d4 {[%clk 0:02:44]}  cxd4 {[%clk 0:02:51]} 7. Qxd4 {[%clk 0:02:45]}  Bg7 {[%clk 0:02:51]} 8. O-O {[%clk 0:02:45]}  O-O {[%clk 0:02:49]} 9. Qh4 {[%clk 0:02:43]}  d6 {[%clk 0:02:37]} 10. Bh6 {[%clk 0:02:37]}  Na6 {[%clk 0:02:35]} 11. e4 {[%clk 0:02:22]}  Nc5 {[%clk 0:02:24]} 12. Rfe1 {[%clk 0:02:14]}  Bxh6 {[%clk 0:02:15]} 13. Qxh6 {[%clk 0:02:15]}  Ncxe4 {[%clk 0:02:12]} 14. Nxe4 {[%clk 0:02:05]}  Bxe4 {[%clk 0:02:13]} 15. Ng5 {[%clk 0:01:51]}  Bxg2 {[%clk 0:02:12]} 16. Kxg2 {[%clk 0:01:52]}  Qc7 {[%clk 0:01:59]} 17. Kg1 {[%clk 0:01:33]}  Qxc4 {[%clk 0:01:44]} 18. Rxe7 {[%clk 0:01:02]}  Rae8 {[%clk 0:01:44]} 19. Ne6 {[%clk 0:00:42]}  Qxe6 {[%clk 0:01:38]} 20. Rxe6 {[%clk 0:00:42]}  Rxe6 {[%clk 0:01:38]} 21. Qd2 {[%clk 0:00:32]}  Rfe8 {[%clk 0:01:38]} 22. Rc1 {[%clk 0:00:29]}  d5 {[%clk 0:01:35]} 23. Qd3 {[%clk 0:00:27]}  Kg7 {[%clk 0:01:32]} 24. a4 {[%clk 0:00:25]}  a5 {[%clk 0:01:31]} 25. h3 {[%clk 0:00:21]}  h5 {[%clk 0:01:29]} 26. Rc2 {[%clk 0:00:21]}  Re4 {[%clk 0:01:24]} 27. b3 {[%clk 0:00:18]}  h4 {[%clk 0:01:23]} 28. g4 {[%clk 0:00:18]}  Re1+ {[%clk 0:01:17]} 29. Kg2 {[%clk 0:00:17]}  Rb1 {[%clk 0:01:16]} 30. Rc6 {[%clk 0:00:12]}  Rbe1 {[%clk 0:01:05]} 31. Qd4 {[%clk 0:00:05]}  R1e5 {[%clk 0:01:02]} 32. f4 {[%clk 0:00:03]}  Re2+ {[%clk 0:01:02]} 33. Kf3 {[%clk 0:00:03]}  R8e3+ {[%clk 0:00:59]} 34. Qxe3 {[%clk 0:00:03]}  Rxe3+ {[%clk 0:01:00]} 35. Kxe3 {[%clk 0:00:04]}  Nd7 {[%clk 0:00:56]} 36. Kd4 {[%clk 0:00:04]}  g5 {[%clk 0:00:44]} 37. fxg5 {[%clk 0:00:04]}  Nf8 {[%clk 0:00:41]} 38. Kxd5 {[%clk 0:00:04]}  Nh7 {[%clk 0:00:41]} 39. g6 {[%clk 0:00:03]}  Ng5 {[%clk 0:00:34]} 40. gxf7 {[%clk 0:00:03]}  Kxf7 {[%clk 0:00:35]} 41. Rxb6 {[%clk 0:00:03]}  Nxh3 {[%clk 0:00:35]} 42. Ke4 {[%clk 0:00:03]}  Nf2+ {[%clk 0:00:33]} 43. Kf3 {[%clk 0:00:03]}  Nd3 {[%clk 0:00:33]} 44. Rb5 {[%clk 0:00:02]}  Nc1 {[%clk 0:00:29]} 45. Rxa5 {[%clk 0:00:02]}  Nxb3 {[%clk 0:00:29]} 46. Ra7+ {[%clk 0:00:03]}  Ke6 {[%clk 0:00:28]} 47. Ra6+ {[%clk 0:00:02]}  Ke5 {[%clk 0:00:26]} 48. Rh6 {[%clk 0:00:02]}  Nd4+ {[%clk 0:00:27]} 49. Kg2 {[%clk 0:00:03]}  Kf4 {[%clk 0:00:26]} 50. Rxh4 {[%clk 0:00:02]}  Kg5 {[%clk 0:00:27]} 51. Rh3 {[%clk 0:00:02]}  Kxg4 {[%clk 0:00:27]} 52. Ra3 {[%clk 0:00:03]}  Kf5 {[%clk 0:00:22]} 53. a5 {[%clk 0:00:03]}  Nb5 {[%clk 0:00:23]} 54. a6 {[%clk 0:00:03]}  Na7 {[%clk 0:00:23]} 55. Rb3 {[%clk 0:00:04]}  Ke6 {[%clk 0:00:23]} 56. Rb7 {[%clk 0:00:05]}  Nc8 {[%clk 0:00:22]} 57. a7 {[%clk 0:00:05]}  Nd6 {[%clk 0:00:23]} 58. a8=Q {[%clk 0:00:05]}  Nf5 {[%clk 0:00:23]} 59. Rb6+ {[%clk 0:00:06]}  Ke5 {[%clk 0:00:23]} 60. Rb5+ {[%clk 0:00:06]}  Kf4 {[%clk 0:00:23]} 61. Rxf5+ {[%clk 0:00:06]}  Kxf5 {[%clk 0:00:24]} 62. Qf3+ {[%clk 0:00:06]}  Ke5 {[%clk 0:00:24]} 63. Kf2 {[%clk 0:00:06]}  Kd4 {[%clk 0:00:25]} 64. Ke2 {[%clk 0:00:07]}  Kc4 {[%clk 0:00:26]} 65. Qd3+ {[%clk 0:00:07]}  Kb4 {[%clk 0:00:27]} 66. Qc2 {[%clk 0:00:08]}  Ka5 {[%clk 0:00:27]} 67. Qb3 {[%clk 0:00:08]}  Ka6 {[%clk 0:00:28]} 68. Kd3 {[%clk 0:00:09]}  Ka5 {[%clk 0:00:29]} 69. Kc4 {[%clk 0:00:10]}  Ka6 {[%clk 0:00:30]} 70. Kc5 {[%clk 0:00:11]}  Ka7 {[%clk 0:00:31]} 71. Kc6 {[%clk 0:00:11]}  Ka8 {[%clk 0:00:32]} 72. Qb7# {[%clk 0:00:11]} 1-0


[Site "https://www.chess.com"]